Cogmind - Beta 16 @@@ ROGUE MODE // 2026.01.17 @ 13:49:34 // AFD2019/Pay2Buy Player: chebyrekser Result: Destroyed by D-53 Grenadier with Mini Grenade Launcher Performance ------------- Evolutions (0) 0 Regions Visited (4) 800 Robots Destroyed (36) 180 Value Destroyed (625) 625 Prototype IDs (2) 40 Alien Tech Used (0) 0 Bonus (357) 357 TOTAL SCORE: 2002 Bonus ------- Follower Combat Kills 57 Aligned with FarCom 300 Cogmind --------- Core Integrity 0/250 Matter 276/300 Energy 99/100 System Corruption 0% Temperature Cool (0) Movement Treading (160) Location -9/Mines Parts ------- > --- POWER (1) -------- (None) > --- PROPULSION (2) --- Improved Treads > --- UTILITY (2) ------ Salvage Targeting Computer > --- WEAPON (2) ------- Mini Grenade Launcher > --- INVENTORY (10) --- Light Treads Spiked Treads Scrap Suit High-capacity Matter Pod (200) High-capacity Matter Pod (9) Improved Sensor Array Power Shielding Enhanced Autogun Peak State ------------ > --- POWER ------------ (None) > --- PROPULSION ------- Improved Treads Improved Treads > --- UTILITY ---------- Salvage Targeting Computer Medium Armor Plating > --- WEAPON ----------- Improved Assault Rifle Improved Assault Rifle > --- INVENTORY -------- Light Treads Spiked Treads Scrap Suit High-capacity Matter Pod High-capacity Matter Pod Improved Sensor Array Power Shielding Enhanced Autogun Mini Grenade Launcher [Rating: 16] Favorites ----------- Power None Propulsion Improved Treads Treads Improved Treads Utility Medium Armor Plating Device Improved Sensor Array Processor Salvage Targeting Computer Protection Medium Armor Plating Weapon Improved Assault Rifle Ballistic Gun Improved Assault Rifle Launcher Mini Grenade Launcher Build | -11 -10 -10 -10 -9 ------- Run | Yrd Mat Min Exi Min Slots Evolved . | . . . . . Power . | . . . . . Propulsion . | . . . . . Utility . | . . . . . Weapon . | . . . . . Parts Attached 3 | . . 3 . . Power . | . . . . . Engine . | . . . . . Core . | . . . . . Reactor . | . . . . . Propulsion . | . . . . . Treads . | . . . . . Leg . | . . . . . Wheel . | . . . . . Hover . | . . . . . Flight . | . . . . . Utility 1 | . . 1 . . Device . | . . . . . Storage . | . . . . . Processor . | . . . . . Hackware . | . . . . . Protection 1 | . . 1 . . Artifact . | . . . . . Weapon 2 | . . 2 . . Energy Gun . | . . . . . Energy Cannon . | . . . . . Ballistic Gun 1 | . . 1 . . Ballistic Cannon . | . . . . . Launcher 1 | . . 1 . . Special Weapon . | . . . . . Impact Weapon . | . . . . . Slashing Weapon . | . . . . . Piercing Weapon . | . . . . . Special Melee Weapon . | . . . . . Unidentified Prototypes . | . . . . . Parts Lost 4 | . . . . 4 Power . | . . . . . Propulsion 1 | . . . . 1 Utility 1 | . . . . 1 Weapon 2 | . . . . 2 Highest Loss Streak 4 | . . . . 4 To Critical Strikes . | . . . . . Average Backups 5 | . 2 6 8 8 Power . | . . . . . Propulsion 1 | . . 1 2 2 Utility 3 | . . 3 5 5 Weapon 1 | . 1 1 1 1 Tool/Special . | . . . . . Unused Backups 5 | . . . . 5 Power . | . . . . . Propulsion 2 | . . . . 2 Utility 2 | . . . . 2 Weapon 1 | . . . . 1 Tool/Special . | . . . . . Average Slot Usage (%) 78 | . 66 82 85 83 Treads 27 | . 28 28 28 27 Processor 9 | . . 12 14 14 Protection 11 | . 9 11 14 13 Ballistic Gun 27 | . 28 27 28 27 Peak Build Rating 16 | 12 12 15 15 16 Average Rating 13 | 11 11 14 15 15 On Entrance 10 | . 12 10 15 15 Avg Prop Armor Cover (%) . | . . . . . Naked Turns . | . . . . . Heaviest Build 13 | 13 13 13 13 13 Greatest Support 46 | 46 46 46 46 46 Greatest Overweight (x) . | . . . . . Average Overweight (x) . | . . . . . Largest Inventory Capacity 10 | 10 10 10 10 10 Average Capacity 10 | 10 10 10 10 10 Most Carried 10 | 1 4 9 9 10 Average Carried 5 | . 2 6 9 9 Final Capacity 10 | 10 10 10 10 10 Final Carried 9 | 1 4 9 9 9 Class Distribution -------------------- 100% | Mutant Dominant Class ---------------- Mutant | -10/Materials Mutant | -10/Mines Mutant | -10/Exiles Mutant | -9/Mines Resources | -11 -10 -10 -10 -9 ----------- Run | Yrd Mat Min Exi Min Matter Collected 938 | 112 442 278 . 106 Remotely . | . . . . . Salvage Created 1106 | 112 589 278 . 127 Parts . | . . . . . Haulers Intercepted . | . . . . . Recyclers Shooed . | . . . . . Parts Field Recycled . | . . . . . Retrieved Matter . | . . . . . Parts Self-Destructed . | . . . . . Prevented . | . . . . . Parts Restored . | . . . . . Kills | -11 -10 -10 -10 -9 ------- Run | Yrd Mat Min Exi Min Combat Hostiles Destroyed 19 | . 12 2 . 5 Melee 1 | . 1 . . . Guns 16 | . 11 2 . 3 AOE 2 | . . . . 2 Classes Destroyed 9 | 2 6 . . 1 Worker 5 | . 2 2 . 1 Tunneler 6 | 3 . 1 . 2 Recycler 3 | 1 . 2 . . Mechanic 1 | . 1 . . . Operator 1 | . 1 . . . Watcher 3 | . 3 . . . Swarmer 6 | . 3 . . 3 Grunt 11 | . 9 2 . . Assembled 2 | . . . . 2 Best Kill Streak 7 | 2 7 3 . 2 Combat Bots Only 3 | . 3 2 . 2 Max Kills in Single Turn 2 | 1 1 1 . 2 Gunslinging . | . . . . . Exploded 2 | . . . . 2 Melee 1 | . 1 . . . Uniques/NPCs Destroyed . | . . . . . Combat | -11 -10 -10 -10 -9 -------- Run | Yrd Mat Min Exi Min Hostile Shots Fired 83 | . 54 2 . 27 Missed 17 | . 15 . . 2 Hits 66 | . 39 2 . 25 Melee 6 | . . . . 6 Projectile 60 | . 39 2 . 19 AOE 1 | . . . . 1 Critical Strikes 1 | . . . . 1 Part Disruptions 1 | . . . . 1 Damage Taken 935 | . 466 29 . 440 Core 267 | . 89 . . 178 Absorbed by Shields . | . . . . . Core Remaining (%) 100 | 100 . . . . Volleys Fired 88 | 17 42 14 . 15 Largest 2 | 2 2 2 . 2 Hottest 53 | 46 46 46 . 53 Shots Fired 173 | 34 84 27 . 28 Gun 171 | 34 84 26 . 27 Cannon . | . . . . . Launcher 2 | . . 1 . 1 Special . | . . . . . Kinetic 171 | 34 84 26 . 27 Thermal . | . . . . . Explosive 2 | . . 1 . 1 Electromagnetic . | . . . . . Robot Hit Streak 19 | 5 19 4 . 8 Robot Miss Streak 3 | 2 3 1 . 3 Penetration Max . | . . . . . Secondary Targets 2 | . 2 . . . Max Gunslinging Chain 1 | . 1 . . . Shots Hit Robots 116 | 22 63 16 . 15 Core Hits 50 | 4 26 9 . 11 Critical Kills 1 | . 1 . . . Critical Parts Destroyed 1 | . 1 . . . Critical Strikes 2 | . 2 . . . Destroy 2 | . 2 . . . Melee Attacks . | . . . . . Impact . | . . . . . Slashing . | . . . . . Piercing . | . . . . . Sneak Attacks . | . . . . . Combat Hostiles . | . . . . . Follow-up Attacks . | . . . . . Damage Inflicted 2016 | 361 973 294 . 388 Guns 1822 | 361 973 253 . 235 Cannons . | . . . . . Explosions 194 | . . 41 . 153 Melee . | . . . . . Ramming . | . . . . . Kinetic 1822 | 361 973 253 . 235 Thermal . | . . . . . Explosive 194 | . . 41 . 153 Electromagnetic . | . . . . . Impact . | . . . . . Slashing . | . . . . . Piercing . | . . . . . Highest Corruption . | . . . . . Average Corruption . | . . . . . Corruption Purged . | . . . . . Corruption Blocked . | . . . . . Overload Shots . | . . . . . Overflow Damage 22 | . . . . 22 Projectiles . | . . . . . Explosions 22 | . . . . 22 Melee . | . . . . . Knockbacks . | . . . . . Impact . | . . . . . Kinetic . | . . . . . Secondary . | . . . . . Self-Inflicted Damage 48 | . . . . 48 Shots 1 | . . . . 1 Rammed . | . . . . . Targets Rammed 1 | . 1 . . . Kicked . | . . . . . Crushed 1 | . 1 . . . Highest Temperature 8 | 8 2 2 . 6 Average Temperature 2 | 4 2 2 . 6 Received Heat Transfer 249 | . 174 15 . 60 Siege Activations . | . . . . . Martial Activations . | . . . . . Shielding Activations . | . . . . . Robots Disrupted . | . . . . . Combat Hostiles . | . . . . . Robots Corrupted . | . . . . . Combat Hostiles . | . . . . . Parts Fried . | . . . . . Impact Corruptions . | . . . . . Robots Melted . | . . . . . Combat Hostiles . | . . . . . Parts Melted . | . . . . . Heat Transferred . | . . . . . Parts Sabotaged . | . . . . . Parts Stolen . | . . . . . Parts Stripped . | . . . . . Power Chain Reactions . | . . . . . Alert | -11 -10 -10 -10 -9 ------- Run | Yrd Mat Min Exi Min Maximum Alert Level . | . . . . . Low Security (%) 100 | 100 100 100 . 100 Level 1 . | . . . . . Level 2 . | . . . . . Level 3 . | . . . . . Level 4 . | . . . . . Level 5 . | . . . . . High Security . | . . . . . Max Security . | . . . . . Peak Influence 156 | 5 156 67 . 60 Initial 48 | . . 48 . . Average 34 | 1 74 10 . 19 Influence Increases 652 | 20 376 97 67 92 Destroy 0b10 Robot/C 400 | . 240 40 60 60 Destroy 0b10 Robot/NC 95 | 20 35 25 . 15 Destroy Leader 76 | . 56 10 . 10 Allied During Kill 7 | . . . 7 . Successful Hack 13 | . 13 . . . Disable Machine 15 | . . 15 . . Destroy Structure 16 | . 2 7 . 7 Lose Combat Pursuer 30 | . 30 . . . Influence Decreases 645 | 20 252 221 67 85 Entered New Map 76 | . . 76 . . Time Decay 512 | 20 252 145 10 85 Lost Ally 57 | . . . 57 . Squads Dispatched 2 | . 2 . . . Investigation 1 | . 1 . . . Extermination . | . . . . . Reinforcement 1 | . 1 . . . Assault . | . . . . . Garrison . | . . . . . Intercept . | . . . . . Searches Triggered . | . . . . . Construction Impeded . | . . . . . Haulers Reinforced . | . . . . . Active Scanning Responses . | . . . . . Cargo Convoy Interrupts . | . . . . . Stealth | -11 -10 -10 -10 -9 --------- Run | Yrd Mat Min Exi Min Distress Signals 2 | . 2 . . . Communications Jammed . | . . . . . Distress Signals . | . . . . . Times Spotted 33 | . 18 2 . 13 Peak Tracking Total 10 | . 3 2 . 10 Tactical Retreats 2 | . 2 . . . Traps | -11 -10 -10 -10 -9 ------- Run | Yrd Mat Min Exi Min Traps Triggered 2 | . 2 . . . Indirectly . | . . . . . Trap Hack Attempts . | . . . . . Triggered . | . . . . . Disarmed . | . . . . . Reprogrammed . | . . . . . Reused . | . . . . . Traps Extracted . | . . . . . Installed . | . . . . . Triggered . | . . . . . Machines | -11 -10 -10 -10 -9 ---------- Run | Yrd Mat Min Exi Min Machines Disabled 1 | . . 1 . . Max in Single Turn 1 | . . 1 . . Machines Repaired . | . . . . . Machines Dismantled . | . . . . . Machines Sabotaged . | . . . . . Overloaded Fab Kills . | . . . . . Hacking | -11 -10 -10 -10 -9 --------- Run | Yrd Mat Min Exi Min Machines Accessed 5 | . 4 . 1 . Terminals 4 | . 4 . . . Fabricators . | . . . . . Repair Stations . | . . . . . Recycling Units . | . . . . . Scanalyzers . | . . . . . Garrison Access . | . . . . . Total Hacks 18 | . 16 . 2 . Successful 9 | . 7 . 2 . Failed 9 | . 9 . . . Catastrophic . | . . . . . Database Lockouts . | . . . . . Manual 16 | . 15 . 1 . Terminals 16 | . 16 . . . Fabricators . | . . . . . Repair Stations . | . . . . . Recycling Units . | . . . . . Scanalyzers . | . . . . . Garrison Access . | . . . . . Terminal Hacks 2 | . . . 2 . Record 2 | . . . 2 . Fabricator Hacks . | . . . . . Repair Station Hacks . | . . . . . Recycling Unit Hacks . | . . . . . Scanalyzer . | . . . . . Garrison Access Hacks . | . . . . . Unauthorized Hacks 7 | . 7 . . . Terminals 7 | . 7 . . . Botnet 2 | . 2 . . . Operators 1 | . 1 . . . Skim 4 | . 4 . . . Fabricators . | . . . . . Repair Stations . | . . . . . Recycling Units . | . . . . . Scanalyzers . | . . . . . Garrison Access . | . . . . . Data Cores Recovered . | . . . . . Used . | . . . . . Hacking Detections 4 | . 4 . . . Full Trace Events 1 | . 1 . . . Feedback Events . | . . . . . Feedback Blocked . | . . . . . Robot Schematics Acquired . | . . . . . Robots Built . | . . . . . Authchips . | . . . . . Time . | . . . . . Total Robot Build Rating . | . . . . . Part Schematics Acquired . | . . . . . Parts Built . | . . . . . Authchips . | . . . . . Time . | . . . . . Total Part Build Rating . | . . . . . Part Studies Acquired . | . . . . . Parts Repaired . | . . . . . Time . | . . . . . Parts Recycled . | . . . . . Recycled Matter . | . . . . . Retrieved Matter . | . . . . . Retrieved Components . | . . . . . Parts Scanalyzed . | . . . . . Part Schematics Acquired . | . . . . . Parts Damaged . | . . . . . Bothacking | -11 -10 -10 -10 -9 ------------ Run | Yrd Mat Min Exi Min Used RIF Installer . | . . . . . Robots Hacked . | . . . . . Non-combat . | . . . . . Combat . | . . . . . Robot Hacks Applied . | . . . . . Relay Couplers Released . | . . . . . Fabnet Peak Effective % . | . . . . . Robots Rewired . | . . . . . Allies Hacked . | . . . . . Hacks Repelled . | . . . . . Allies | -11 -10 -10 -10 -9 -------- Run | Yrd Mat Min Exi Min Total Allies 3 | . . 3 . . Largest Group 3 | . . 3 3 . Highest-Rated Group 40 | . . 40 40 . Highest-Rated Ally 16 | . . 16 16 . Total Orders . | . . . . . Ally Attacks 18 | . . . 18 . Total Damage 204 | . . . 204 . Kills 3 | . . . 3 . Allies Corrupted . | . . . . . Allies Melted . | . . . . . Intel | -11 -10 -10 -10 -9 ------- Run | Yrd Mat Min Exi Min Active Infowar (turns) 87 | . . 87 . . Sensors 87 | . . 87 . . Robot Analysis Total . | . . . . . Derelict Logs Recovered . | . . . . . Drone Launches . | . . . . . Drone Recoveries . | . . . . . Exploration | -11 -10 -10 -10 -9 ------------- Run | Yrd Mat Min Exi Min Turns Passed 2254 | 132 675 778 435 234 Spaces Moved 1180 | 61 313 432 257 117 Core 14 | 14 . . . . Treads 1166 | 47 313 432 257 117 Legs . | . . . . . Wheels . | . . . . . Hover . | . . . . . Flight . | . . . . . Fastest Speed 50 | 50 160 160 160 160 Average Speed 158 | 134 160 160 160 160 Slowest Speed 160 | 160 160 160 160 160 Overloaded Moves . | . . . . . Propulsion Burnouts . | . . . . . Robots Hopped . | . . . . . Potential Cave-ins . | . . . . . Cave-ins Triggered . | . . . . . Exploration Rate (%) 47 | 4 73 79 60 19 Regions Visited 4 Branch Regions 3 Pre-discovered Areas 1 | . . . 1 . Known Exits Taken . | . . . . . Unknown Exits Taken 4 | 1 1 1 1 . Scrap Searched . | . . . . . Spaces Dug 9 | . . . . 9 Terrain Destroyed 18 | . . 9 . 9 Melee . | . . . . . Projectile . | . . . . . AOE 18 | . . 9 . 9 Terrain Rammed . | . . . . . Walls Destroyed . | . . . . . Machines Disabled . | . . . . . Actions | -11 -10 -10 -10 -9 --------- Run | Yrd Mat Min Exi Min Total 1390 | 77 403 491 281 138 Wait 117 | . 46 41 25 5 Move 1176 | 60 312 431 256 117 Hop . | . . . . . Pick Up 2 | . 1 1 . . Fast Attach . | . . . . . Attach 1 | . . . . 1 Detach 2 | . 1 1 . . Swap 3 | . . 3 . . Drop . | . . . . . Fire 88 | 17 42 14 . 15 Melee . | . . . . . Ram . | . . . . . Kick . | . . . . . Crush 1 | . 1 . . . Escape Stasis . | . . . . . Rewire . | . . . . . Trap . | . . . . . Miscellaneous . | . . . . . Route ------- -11/Scrapyard -10/Materials (discovered 2 exits: [*Mat] / [*Min]) -10/Mines (discovered 3 exits: [*Mat x2] / *Exi) -10/Exiles -9/Mines History --------- Turn | Location | Event 3 | -11/Scrapyard | Discovered new exit (range 15) 133 | -11/Scrapyard | Entered Materials 305 | -10/Materials | Build established: Mutant 453 | -10/Materials | Discovered new exit (range 16) 633 | -10/Materials | Derelicts attacked the area 765 | -10/Materials | Discovered new exit (range 14) 808 | -10/Materials | Entered Mines 1039 | -10/Mines | Deemed a non-threat by the Exiles lab entrance 1039 | -10/Mines | Discovered new exit (range 5) 1079 | -10/Mines | Assisted by bots powering up and referring to "LRC-V3" 1264 | -10/Mines | Found a Scrap Suit stashed away for nefarious purposes 1268 | -10/Mines | Found Scrap Suit 1371 | -10/Mines | Discovered new exit (range 8) 1425 | -10/Mines | Discovered new exit (range 8) 1586 | -10/Mines | Entered Exiles 1586 | -10/Exiles | Accompanied by 3 allies 1623 | -10/Exiles | Met 8R-AWN 1652 | -10/Exiles | Met EX-HEX 1697 | -10/Exiles | Met EX-BIN 1716 | -10/Exiles | Aligned with FarCom system 1718 | -10/Exiles | Given EX-Vault access code 1754 | -10/Exiles | Opened EX-Vault 1780 | -10/Exiles | Warned to stay clear of 0b10 Research branches 1819 | -10/Exiles | Exiles lab attacked by MAIN.C 1831 | -10/Exiles | Learned location of Zion (-7) 1991 | -10/Exiles | Discovered new exit (range 10) 2021 | -10/Exiles | Entered Mines 2201 | -9/Mines | Assembled infested the area 2249 | -9/Mines | Core integrity fell below 50% 2254 | -9/Mines | Core integrity fell below 20% 2255 | -9/Mines | Destroyed by D-53 Grenadier with Mini Grenade Launcher Last Messages --------------- 02108_ Destroyed Flight Unit. 02111_ Destroyed Lgt. Ion Engine. 02114_ S-10 Pest destroyed. 02117_ Acquired 20 matter. [DISCOUNT: For the next 107 turns enjoy 50% off any Energy Cannon!] [Purchased: Enh. Autogun] 02201_ ALERT: Infestation in the mines, dispatching Demolisher response squad. 02202_ T-07 Excavator destroyed. 02205_ Acquired 12 matter. 02216_ T-07 Excavator destroyed. 02219_ Acquired 27 matter. 02247_ Med. Armor Plating destroyed. 02248_ Imp. Treads destroyed. 02248_ Imp. Assault Rifle destroyed. 02255_ Destroyed Imp. Assault Rifle. 02255_ as-06423 destroyed. 02255_ Destroyed Asb. Hover Unit. 02255_ as-42950 destroyed. Map ----- +----------------------------------------------------+ | ?????????????????????????????????????????????????? | | ?????????????????????????????????????????????????? | | ?????????????????????????????????????????????????? | | ?????????????????????????????????????????????????? | | ?????????????????????????????????????????????????? | | ?????????????????????????????????????????????????? | | ?????????????????????????????????????????????????? | | ?????????????????????????????????????????????????? | | ?????????????????????????????????????????????????? | | ?????????????????????????????????????????????????? | | ?????????????????????????????????????????????????? | | ?????????????????????????????????????????????????? | | ?????????????????????????????????????????????????? | | ?????????????????????????????????????????????????? | | ?????????????????????????????????????????????????? | | ?????????????????????????????????????????????????? | | ?????????????????????????????????????????????????? | | ????????????????????????###??????????????????????? | | ???????????????????????## ##?????????????????????? | | ????????????????????#### ##????????????????????? | | ??????????????????### < ###??????????????????? | | ??????????????????# #??????????????????? | | ??????????????????? ???????????????????? | | ????????????????????? a % % ????????????????????? | | ?????????????????????## %a #?????????????????????? | | ?????????????????????# @ #?????????????????????? | | ?????????????????????## d ############## ????? | | ?????????????????????# d ????? | | ?????????????????????### % ????? | | ???????????????????????####### ######## ?????? | | ????????????????????????###### #?????????????????? | | ????????????????????????# #?????????????????? | | ????????????????######### ######?????????????????? | | ????????????????# #??????????????????????? | | ????????????????# #########??????????????????????? | | ????????????????# #??????????????????????????????? | | ????????????????# #??????????????????????????????? | | ????????????????# #???????????????????g??????????? | | ????????????????# #??????????????????????????????? | | ???????????????## ###????????????????????????????? | | ????????# ###?## ##???????????????????????????? | | ????????# # #???????????????????????????? | | ????????# #############???????????????? | | ????????#### ######??????????? | | ???????????# ########### #??????????? | | ???????????# #### #?????????###### #??????????? | | ???????????# #???# #??????????????# #??????????? | | ??????????# ???## ######?????????# #??######### | | ??????????# #???# #?????????# #??# | | ??????????####????# """ #?????????# #### """ """ | +----------------------------------------------------+ Best States ------------- Heat Dissipation 25 Energy Generation 5 Energy Capacity 100 Matter Stores 300 Matter Capacity 300 Sight Range 16 Robot Scan Range 15 Terrain Scan Density 10 Armor Coverage 225 Evasion (%) 40 Recoil Reduction 2 Salvage Targeting 1 Item Schematics ----------------- None Robot Schematics ------------------ None Fabricated ------------ Nothing Repaired ---------- Nothing Studied --------- None Alien Tech Used ----------------- None Achievements -------------- None Challenges ------------ None Cogshop Purchases (14) ------------------------ Imp. Assault Rifle (699) Imp. Assault Rifle (699) Imp. Treads (874) Imp. Treads (874) Med. Armor Plating (699) Mni. Grenade Launcher (1049) Power Shielding (Loot Box) Spk. Treads (962) Hcp. Matter Pod (525) Imp. Sensor Array (Loot Box) Salvage Targeting Computer (Loot Box) Hcp. Matter Pod (312) Lgt. Treads (415) Enh. Autogun (710) Game ------ Seed StormTransdimensionalRail Manual? 0 Play Time 00:11:45 Cumulative 330.1 hours Start 2026.01.17 @ 13:39:23 End 2026.01.17 @ 13:49:34 Sessions 1 Manual Loads 0 Difficulty Rogue Special Mode AFD2019/Pay2Buy Game No. 93 Rogue 87 Adventurer 0 Explorer 6 Win Type - Total 19 Types 9/1/3/1/1/0/2/1/0/1 Lore% 87 Gallery% 78 Achievement% 69 Wizard Run 0 Options --------- Layout 1 ASCII 0 Keyboard 0 Movement Mouse Keybinds 0 Fullscreen 2 Font 24/Smallcaps Map View 50x35 Zoom Use 0% Tactical HUD 1 Map Filters NONE Filters NONE Steam 1 RUN: 16928ac9-6a00-4b22-a561-9a695a9871e2